Cogmind - Beta 15 @@@ ROGUE MODE // 2025.08.16 @ 23:48:09 Player: beans Result: Destroyed by G-34 Mercenary with Small Laser Performance ------------- Evolutions (0) 0 Regions Visited (1) 200 Robots Destroyed (10) 50 Value Destroyed (113) 113 Prototype IDs (1) 20 Alien Tech Used (0) 0 Bonus (0) 0 TOTAL SCORE: 383 Bonus ------- None Cogmind --------- Core Integrity 0/250 Matter 300/300 Energy 85/100 System Corruption 3% Temperature Cool (6) Movement Core (100) Ox1 Location -10/Materials Parts ------- > --- POWER (1) -------- (None) > --- PROPULSION (2) --- (None) > --- UTILITY (2) ------ (None) > --- WEAPON (2) ------- Beam Rifle Beam Rifle > --- INVENTORY (5) ---- Ion Engine Small Battery (100) Peak State ------------ > --- POWER ------------ Ion Engine > --- PROPULSION ------- Flight Unit Flight Unit > --- UTILITY ---------- (None) > --- WEAPON ----------- Small Laser Small Laser > --- INVENTORY -------- (None) [Rating: 5] Favorites ----------- Power Ion Engine Engine Ion Engine Propulsion Flight Unit Flight Unit Flight Unit Utility None Weapon Small Laser Energy Gun Small Laser Energy Cannon Advanced Beam Cannon Build | -11 -10 ------- Run | Yrd Mat Slots Evolved . | . . Power . | . . Propulsion . | . . Utility . | . . Weapon . | . . Parts Attached 11 | 3 8 Power 1 | 1 . Engine 1 | 1 . Core . | . . Reactor . | . . Propulsion 2 | . 2 Treads . | . . Leg . | . . Wheel . | . . Hover . | . . Flight 2 | . 2 Utility . | . . Device . | . . Storage . | . . Processor . | . . Hackware . | . . Protection . | . . Artifact . | . . Weapon 8 | 2 6 Energy Gun 6 | 2 4 Energy Cannon 2 | . 2 Ballistic Gun . | . . Ballistic Cannon . | . . Launcher . | . . Special Weapon . | . . Impact Weapon . | . . Slashing Weapon . | . . Piercing Weapon . | . . Special Melee Weapon . | . . Unidentified Prototypes 1 | . 1 Parts Lost 3 | . 3 Power . | . . Propulsion 2 | . 2 Utility . | . . Weapon 1 | . 1 Highest Loss Streak 3 | . 3 To Critical Strikes . | . . Average Backups 1 | . 1 Power . | . . Propulsion . | . . Utility . | . . Weapon . | . . Tool/Special . | . . Unused Backups 2 | 1 1 Power . | . . Propulsion . | . . Utility 2 | 1 1 Weapon . | . . Tool/Special . | . . Average Slot Usage (%) 46 | . 46 Engine 9 | . 9 Flight 14 | . 14 Energy Gun 22 | . 22 Peak Build Rating 5 | 3 5 Average Rating 3 | 2 3 On Entrance 1 | . 3 Naked Turns 6 | . 6 Heaviest Build 7 | 7 7 Greatest Support 8 | 3 8 Greatest Overweight (x) 2 | 2 2 Average Overweight (x) . | 1 . Largest Inventory Capacity 5 | 5 5 Average Capacity 5 | 5 5 Most Carried 4 | 3 4 Average Carried 1 | . 1 Final Capacity 5 | 5 5 Final Carried 2 | . 2 Class Distribution -------------------- 100% | Mutant Dominant Class ---------------- Mutant | -10/Materials Resources | -11 -10 ----------- Run | Yrd Mat Matter Collected 310 | 201 109 Remotely . | . . Salvage Created 272 | 67 205 Parts 23 | 3 20 Haulers Intercepted 1 | . 1 Recyclers Shooed . | . . Parts Field Recycled . | . . Retrieved Matter . | . . Parts Self-Destructed . | . . Prevented . | . . Kills | -11 -10 ------- Run | Yrd Mat Combat Hostiles Destroyed 7 | . 7 Guns 5 | . 5 Cannons 2 | . 2 Classes Destroyed 5 | 1 4 Worker 1 | . 1 Hauler 1 | . 1 Recycler 1 | 1 . Swarmer 6 | . 6 Grunt 1 | . 1 Best Kill Streak 3 | 1 3 Combat Bots Only 3 | . 3 Max Kills in Single Turn 1 | 1 1 Gunslinging . | . . Exploded . | . . Melee . | . . Uniques/NPCs Destroyed . | . . Combat | -11 -10 -------- Run | Yrd Mat Hostile Shots Fired 101 | . 101 Missed 46 | . 46 Hits 55 | . 55 Projectile 55 | . 55 Damage Taken 566 | . 566 Core 256 | . 256 Absorbed by Shields . | . . Core Remaining (%) 100 | 100 . Volleys Fired 38 | 2 36 Largest 2 | 2 2 Hottest 112 | 80 112 Shots Fired 64 | 4 60 Gun 59 | 4 55 Cannon 5 | . 5 Launcher . | . . Special . | . . Kinetic . | . . Thermal 49 | 4 45 Explosive . | . . Electromagnetic 15 | . 15 Robot Hit Streak 5 | 2 5 Robot Miss Streak 4 | 2 4 Penetration Max . | . . Secondary Targets 2 | . 2 Max Gunslinging Chain 1 | . 1 Shots Hit Robots 36 | 2 34 Core Hits 16 | 2 14 Critical Kills . | . . Critical Parts Destroyed . | . . Critical Strikes . | . . Melee Attacks . | . . Impact . | . . Slashing . | . . Piercing . | . . Sneak Attacks . | . . Combat Hostiles . | . . Follow-up Attacks . | . . Damage Inflicted 492 | 22 470 Guns 451 | 22 429 Cannons 41 | . 41 Explosions . | . . Melee . | . . Ramming . | . . Kinetic . | . . Thermal 351 | 22 329 Explosive . | . . Electromagnetic 141 | . 141 Impact . | . . Slashing . | . . Piercing . | . . Highest Corruption 3 | . 3 Average Corruption 3 | . 3 Corruption Purged . | . . Corruption Blocked . | . . Effects 1 | . 1 Heat Flow Errors 1 | . 1 Overload Shots . | . . Overflow Damage . | . . Projectiles . | . . Explosions . | . . Melee . | . . Knockbacks . | . . Impact . | . . Kinetic . | . . Secondary . | . . Self-Inflicted Damage . | . . Shots . | . . Rammed . | . . Targets Rammed . | . . Kicked . | . . Crushed . | . . Highest Temperature 219 | 36 219 Average Temperature 53 | 20 55 Received Heat Transfer 198 | . 198 Effects 1 | . 1 Interference 1 | . 1 Siege Activations . | . . Martial Activations . | . . Shielding Activations . | . . Robots Disrupted . | . . Combat Hostiles . | . . Robots Corrupted . | . . Combat Hostiles . | . . Parts Fried . | . . Impact Corruptions . | . . Robots Melted . | . . Combat Hostiles . | . . Parts Melted 3 | . 3 Heat Transferred 832 | 50 782 Parts Sabotaged . | . . Parts Stolen . | . . Parts Stripped . | . . Power Chain Reactions . | . . Alert | -11 -10 ------- Run | Yrd Mat Maximum Alert Level . | . . Low Security (%) 100 | 100 100 Level 1 . | . . Level 2 . | . . Level 3 . | . . Level 4 . | . . Level 5 . | . . High Security . | . . Max Security . | . . Peak Influence 183 | 5 183 Initial . | . . Average 63 | 1 75 Influence Increases 328 | 5 323 Destroy 0b10 Robot/C 140 | . 140 Destroy 0b10 Robot/NC 15 | 5 10 Destroy Leader 22 | . 22 Disable Machine 15 | . 15 Destroy Structure 1 | . 1 Lose Combat Pursuer 135 | . 135 Influence Decreases 145 | 5 140 Time Decay 115 | 5 110 Lost Part 30 | . 30 Squads Dispatched 2 | . 2 Investigation . | . . Extermination . | . . Reinforcement 2 | . 2 Assault . | . . Garrison . | . . Intercept . | . . Searches Triggered . | . . Construction Impeded . | . . Haulers Reinforced . | . . Active Scanning Responses . | . . Cargo Convoy Interrupts . | . . Stealth | -11 -10 --------- Run | Yrd Mat Distress Signals 1 | . 1 Communications Jammed . | . . Distress Signals . | . . Times Spotted 25 | . 25 Peak Tracking Total 7 | . 7 Tactical Retreats 4 | . 4 Traps | -11 -10 ------- Run | Yrd Mat Traps Triggered . | . . Indirectly . | . . Trap Hack Attempts . | . . Triggered . | . . Disarmed . | . . Reprogrammed . | . . Reused . | . . Traps Extracted . | . . Installed . | . . Triggered . | . . Machines | -11 -10 ---------- Run | Yrd Mat Machines Disabled 1 | . 1 Max in Single Turn 1 | . 1 Machines Repaired . | . . Machines Dismantled . | . . Machines Sabotaged . | . . Overloaded Fab Kills . | . . Hacking | -11 -10 --------- Run | Yrd Mat Machines Accessed . | . . Terminals . | . . Fabricators . | . . Repair Stations . | . . Recycling Units . | . . Scanalyzers . | . . Garrison Access . | . . Total Hacks . | . . Successful . | . . Failed . | . . Catastrophic . | . . Database Lockouts . | . . Manual . | . . Terminals . | . . Fabricators . | . . Repair Stations . | . . Recycling Units . | . . Scanalyzers . | . . Garrison Access . | . . Terminal Hacks . | . . Fabricator Hacks . | . . Repair Station Hacks . | . . Recycling Unit Hacks . | . . Scanalyzer . | . . Garrison Access Hacks . | . . Unauthorized Hacks . | . . Terminals . | . . Fabricators . | . . Repair Stations . | . . Recycling Units . | . . Scanalyzers . | . . Garrison Access . | . . Data Cores Recovered . | . . Used . | . . Hacking Detections . | . . Full Trace Events . | . . Feedback Events . | . . Feedback Blocked . | . . Robot Schematics Acquired . | . . Robots Built . | . . Authchips . | . . Time . | . . Total Robot Build Rating . | . . Part Schematics Acquired . | . . Parts Built . | . . Authchips . | . . Time . | . . Total Part Build Rating . | . . Parts Repaired . | . . Time . | . . Parts Recycled . | . . Recycled Matter . | . . Retrieved Matter . | . . Retrieved Components . | . . Parts Scanalyzed . | . . Part Schematics Acquired . | . . Parts Damaged . | . . Bothacking | -11 -10 ------------ Run | Yrd Mat Used RIF Installer . | . . Robots Hacked . | . . Non-combat . | . . Combat . | . . Robot Hacks Applied . | . . Relay Couplers Released . | . . Fabnet Peak Effective % . | . . Robots Rewired . | . . Allies Hacked . | . . Hacks Repelled . | . . Allies | -11 -10 -------- Run | Yrd Mat Total Allies . | . . Largest Group . | . . Highest-Rated Group . | . . Highest-Rated Ally . | . . Total Orders . | . . Ally Attacks . | . . Total Damage . | . . Kills . | . . Allies Corrupted . | . . Allies Melted . | . . Intel | -11 -10 ------- Run | Yrd Mat Active Infowar (turns) . | . . Robot Analysis Total . | . . Derelict Logs Recovered . | . . Drone Launches . | . . Drone Recoveries . | . . Exploration | -11 -10 ------------- Run | Yrd Mat Turns Passed 297 | 47 250 Spaces Moved 266 | 34 232 Core 67 | 34 33 Treads . | . . Legs . | . . Wheels . | . . Hover . | . . Flight 199 | . 199 Fastest Speed 37 | 50 37 Average Speed 56 | 100 49 Slowest Speed 150 | 150 150 Overloaded Moves . | . . Propulsion Burnouts . | . . Robots Hopped 2 | . 2 Potential Cave-ins . | . . Cave-ins Triggered . | . . Exploration Rate (%) 23 | 3 43 Regions Visited 1 Branch Regions . Pre-discovered Areas . | . . Known Exits Taken . | . . Unknown Exits Taken 1 | 1 . Scrap Searched . | . . Spaces Dug . | . . Terrain Destroyed . | . . Melee . | . . Projectile . | . . AOE . | . . Terrain Rammed . | . . Walls Destroyed . | . . Machines Disabled . | . . Actions | -11 -10 --------- Run | Yrd Mat Total 351 | 43 308 Wait 17 | . 17 Move 261 | 33 228 Hop 2 | . 2 Pick Up 13 | 4 9 Fast Attach . | . . Attach 12 | 3 9 Detach 2 | . 2 Swap . | . . Drop 6 | 1 5 Fire 38 | 2 36 Melee . | . . Ram . | . . Kick . | . . Crush . | . . Escape Stasis . | . . Rewire . | . . Trap . | . . Miscellaneous . | . . Route ------- -11/Scrapyard -10/Materials (discovered 1 exit: [*Mat]) History --------- Turn | Location | Event 2 | -11/Scrapyard | Met Revision 17 7 | -11/Scrapyard | Discovered new exit (range 15) 48 | -11/Scrapyard | Entered Materials 143 | -10/Materials | Discovered new exit (range 14) 213 | -10/Materials | Core integrity fell below 50% 252 | -10/Materials | Core integrity fell below 20% 258 | -10/Materials | Lost 3 parts (2n1w) 298 | -10/Materials | Destroyed by G-34 Mercenary with Small Laser Last Messages --------------- Dropped Faulty Adv. Beam Cannon. Acquired Adv. Beam Cannon. S-10 Pest destroyed. Dropped Adv. Beam Cannon. Acquired Beam Rifle. K-01 Serf collects debris. G-34 Mercenary misfires. K-01 Serf collects debris. G-34 Mercenary destroyed. Flight Unit melted. S-10 Pest destroyed. K-01 Serf collects debris. G-34 Mercenary IFF system glitched. K-01 Serf collects debris. System corrupted: Heat flow error (+202). Ion Engine melted. G-34 Mercenary destroyed. Acquired 40 matter. U-05 Engineer builds a Door. K-01 Serf collects debris. Map ----- +----------------------------------------------------+ | | | | | | | | | | | | | | | | | | | | | | | | | | | | | | | | | | | | | ????????????????????????????????????? | | ?????????########???????????????????? | | ?????????#==[ ]]#???????????????????? | | ?????????#==[ ] #???????????????????? | | ?????????# ] #???????????????????? | | ?????????## ############+###????? | | ??????????# !%= #????# | | ??????????# @ k #????# | | ??????????#### g #????# | | ?????????????# ^ g #????# | | ?????????????+ =% ###### | | ?????????????#%[ ^= o | | ?????????????#=*############## | | ?????????????#%=#????????????# | | ?????????????#[ #????????????####+### | | ?????????????# +?????????????? ## | | ?????????????# #???????????? ## | | ?????????????# #??????????# ## | | ?????????????# #??????????# ## | | ?????????????# #??????????# ## | | ?????????????/=%???????????# ## | | ?????????????# [???????????# # | | ?????????????# ???????????# # | | ?????????????# ???????????# # | | ???????????????????????????# #= | | ???????????????????????????# # | | ???????????????????????????########## | | ????????????????????????????????????# | | ????????????????????????????????????# | | ????????????????????????????????????# | | ????????????????????????????????????# | | ????????????????????????????????????# | +----------------------------------------------------+ Best States ------------- Heat Dissipation 25 Energy Generation 10 Energy Capacity 250 Matter Stores 300 Matter Capacity 300 Sight Range 16 Terrain Scan Density 10 Evasion (%) 62 Item Schematics ----------------- None Robot Schematics ------------------ None Fabricated ------------ Nothing Repaired ---------- Nothing Alien Tech Used ----------------- None Achievements -------------- None Challenges ------------ None Game ------ Seed SuspensionEtherialRedirector Manual? 0 Play Time 00:06:54 Cumulative 91.7 hours Start 2025.08.16 @ 23:44:26 End 2025.08.16 @ 23:48:09 Sessions 1 Manual Loads 0 Difficulty Rogue Special Mode None Game No. 358 Rogue 358 Adventurer 0 Explorer 0 Win Type - Total 0 Types 0/0/0/0/0/0/0/0/0/0 Lore% 42 Gallery% 39 Achievement% 30 Wizard Run 0 Options --------- Layout 2 ASCII 0 Keyboard 0 Movement Mouse Keybinds 0 Fullscreen 2 Font 24/Smallcaps Map View 50x44 Zoom Use 0% Tactical HUD 0 Map Filters NONE Filters NONE Steam 1 RUN: 03be0123-8f2e-4e23-a5ee-0d7fb840b041